{"text_format":"3","workbook":"xlsx","n_sheets":1,"sheets":["Budget familiare mensile"],"not_rendered":{"defined_names":1},"read":"whole","date_system":"1900"}

{"sheet":"Budget familiare mensile","index":0,"n_rows":68,"n_cols":9,"rows_kept":68,"merged":[[0,0,0,6],[2,0,2,1],[2,5,2,6],[8,5,8,6],[18,0,18,3],[27,5,27,8],[29,0,29,3],[36,0,36,3],[37,5,37,8],[42,0,42,3],[44,5,44,8],[54,0,54,3],[54,5,54,8],[61,0,61,3],[62,5,62,8]]}
["Budget familiare mensile"]
[]
["Totale costi previsti",null,"Totale costi effettivi","Totale differenza",null,"Ricavi mensili previsti"]
[null,{"$f":"Housing[[#Totals],[Costo previsto]]+Transportation[[#Totals],[Costo previsto]]+Insurance[[#Totals],[Costo previsto]]+Food[[#Totals],[Costo previsto]]+Children[[#Totals],[Costo previsto]]+Legal[[#Totals],[Costo previsto]]+Savings[[#Totals],[Costo previsto]]+Loans[[#Totals],[Costo previsto]]+Entertainment[[#Totals],[Costo previsto]]+Taxes[[#Totals],[Costo previsto]]+PersonalCare[[#Totals],[Costo previsto]]+Pets[[#Totals],[Costo previsto]]+Gifts[[#Totals],[Costo previsto]]","v":{"v":1203,"d":"€ 1,203"}},{"$f":"Housing[[#Totals],[Costo effettivo]]+Transportation[[#Totals],[Costo effettivo]]+Insurance[[#Totals],[Costo effettivo]]+Food[[#Totals],[Costo effettivo]]+Children[[#Totals],[Costo effettivo]]+Legal[[#Totals],[Costo effettivo]]+Savings[[#Totals],[Costo effettivo]]+Loans[[#Totals],[Costo effettivo]]+Entertainment[[#Totals],[Costo effettivo]]+Taxes[[#Totals],[Costo effettivo]]+PersonalCare[[#Totals],[Costo effettivo]]+Pets[[#Totals],[Costo effettivo]]+Gifts[[#Totals],[Costo effettivo]]","v":{"v":1317,"d":"€ 1,317"}},{"$f":"Housing[[#Totals],[Differenza]]+Transportation[[#Totals],[Differenza]]+Insurance[[#Totals],[Differenza]]+Food[[#Totals],[Differenza]]+Children[[#Totals],[Differenza]]+Legal[[#Totals],[Differenza]]+Savings[[#Totals],[Differenza]]+Loans[[#Totals],[Differenza]]+Entertainment[[#Totals],[Differenza]]+Taxes[[#Totals],[Differenza]]+PersonalCare[[#Totals],[Differenza]]+Pets[[#Totals],[Differenza]]+Gifts[[#Totals],[Differenza]]","v":{"v":-114,"d":"€ 114"}},null,"Ricavi 1",{"v":4000,"d":"€ 4,000"}]
[{"$nulls":5},"Ricavi 2",{"v":1200,"d":"€ 1,200"}]
["Abitazione","Costo previsto","Costo effettivo","Differenza",null,"Introiti extra",{"v":300,"d":"€ 300"}]
["Mutuo o affitto",{"v":1000,"d":"€ 1,000"},{"v":1000,"d":"€ 1,000"},{"$f":"Housing[Costo previsto]-Housing[Costo effettivo]","v":{"v":0,"d":"€ 0"}},null,"Totale introiti mensili",{"$f":"SUM(G4:G6)","v":{"v":5500,"d":"€ 5,500"}}]
["Secondo mutuo o affitto",{"v":0,"d":"€ 0"},{"v":0,"d":"€ 0"},{"$f":"Housing[Costo previsto]-Housing[Costo effettivo]","v":{"v":0,"d":"€ 0"}}]
["Telefono",{"v":62,"d":"€ 62"},{"v":100,"d":"€ 100"},{"$f":"Housing[Costo previsto]-Housing[Costo effettivo]","v":{"v":-38,"d":"€ 38"}},null,"Ricavi mensili effettivi"]
["Elettricità",{"v":44,"d":"€ 44"},{"v":125,"d":"€ 125"},{"$f":"Housing[Costo previsto]-Housing[Costo effettivo]","v":{"v":-81,"d":"€ 81"}},null,"Ricavi 1",{"v":4000,"d":"€ 4,000"}]
["Gas",{"v":22,"d":"€ 22"},{"v":35,"d":"€ 35"},{"$f":"Housing[Costo previsto]-Housing[Costo effettivo]","v":{"v":-13,"d":"€ 13"}},null,"Ricavi 2",{"v":1200,"d":"€ 1,200"}]
["Acqua",{"v":8,"d":"€ 8"},{"v":8,"d":"€ 8"},{"$f":"Housing[Costo previsto]-Housing[Costo effettivo]","v":{"v":0,"d":"€ 0"}},null,"Introiti extra",{"v":300,"d":"€ 300"}]
["Luce",{"v":34,"d":"€ 34"},{"v":39,"d":"€ 39"},{"$f":"Housing[Costo previsto]-Housing[Costo effettivo]","v":{"v":-5,"d":"€ 5"}},null,"Totale introiti mensili",{"$f":"SUM(G10:G12)","v":{"v":5500,"d":"€ 5,500"}}]
["Tassa rifiuti",{"v":10,"d":"€ 10"},{"v":10,"d":"€ 10"},{"$f":"Housing[Costo previsto]-Housing[Costo effettivo]","v":{"v":0,"d":"€ 0"}}]
["Manutenzione o riparazioni",{"v":23,"d":"€ 23"},{"v":0,"d":"€ 0"},{"$f":"Housing[Costo previsto]-Housing[Costo effettivo]","v":{"v":23,"d":"€ 23"}},null,"Saldo previsto\n",{"$f":"SUM(G7-B4)","v":{"v":4297,"d":"€ 4,297"}}]
["Forniture",{"v":0,"d":"€ 0"},{"v":0,"d":"€ 0"},{"$f":"Housing[Costo previsto]-Housing[Costo effettivo]","v":{"v":0,"d":"€ 0"}},null,"Saldo effettivo",{"$f":"SUM(G13-C4)","v":{"v":4183,"d":"€ 4,183"}}]
["Altro",{"v":0,"d":"€ 0"},{"v":0,"d":"€ 0"},{"$f":"Housing[Costo previsto]-Housing[Costo effettivo]","v":{"v":0,"d":"€ 0"}},null,"Differenza",{"$f":"SUM(G16-G15)","v":{"v":-114,"d":"€ 114"}}]
["Totale",{"$f":"SUBTOTAL(109,Housing[Costo previsto])","v":{"v":1203,"d":"€ 1,203"}},{"$f":"SUBTOTAL(109,Housing[Costo effettivo])","v":{"v":1317,"d":"€ 1,317"}},{"$f":"SUBTOTAL(109,Housing[Differenza])","v":{"v":-114,"d":"€ 114"}}]
[]
["Trasporti","Costo previsto","Costo effettivo","Differenza",null,"Prestiti","Costo previsto","Costo effettivo","Differenza"]
["Pagamento veicolo 1",null,null,{"$f":"Transportation[Costo previsto]-Transportation[Costo effettivo]","v":{"v":0,"d":"€ 0"}},null,"Personali",null,null,{"$f":"Loans[Costo previsto]-Loans[Costo effettivo]","v":{"v":0,"d":"€ 0"}}]
["Pagamento veicolo 2",null,null,{"$f":"Transportation[Costo previsto]-Transportation[Costo effettivo]","v":{"v":0,"d":"€ 0"}},null,"Per Studenti",null,null,{"$f":"Loans[Costo previsto]-Loans[Costo effettivo]","v":{"v":0,"d":"€ 0"}}]
["Bus/taxi",null,null,{"$f":"Transportation[Costo previsto]-Transportation[Costo effettivo]","v":{"v":0,"d":"€ 0"}},null,"Carta di credito",null,null,{"$f":"Loans[Costo previsto]-Loans[Costo effettivo]","v":{"v":0,"d":"€ 0"}}]
["Assicurazione",null,null,{"$f":"Transportation[Costo previsto]-Transportation[Costo effettivo]","v":{"v":0,"d":"€ 0"}},null,"Carta di credito",null,null,{"$f":"Loans[Costo previsto]-Loans[Costo effettivo]","v":{"v":0,"d":"€ 0"}}]
["Licenze",null,null,{"$f":"Transportation[Costo previsto]-Transportation[Costo effettivo]","v":{"v":0,"d":"€ 0"}},null,"Carta di credito",null,null,{"$f":"Loans[Costo previsto]-Loans[Costo effettivo]","v":{"v":0,"d":"€ 0"}}]
["Carburante",null,null,{"$f":"Transportation[Costo previsto]-Transportation[Costo effettivo]","v":{"v":0,"d":"€ 0"}},null,"Altro",null,null,{"$f":"Loans[Costo previsto]-Loans[Costo effettivo]","v":{"v":0,"d":"€ 0"}}]
["Manutenzione",null,null,{"$f":"Transportation[Costo previsto]-Transportation[Costo effettivo]","v":{"v":0,"d":"€ 0"}},null,"Totale",{"$f":"SUBTOTAL(109,Loans[Costo previsto])","v":{"v":0,"d":"€ 0"}},{"$f":"SUBTOTAL(109,Loans[Costo effettivo])","v":{"v":0,"d":"€ 0"}},{"$f":"SUBTOTAL(109,Loans[Differenza])","v":{"v":0,"d":"€ 0"}}]
["Altro",null,null,{"$f":"Transportation[Costo previsto]-Transportation[Costo effettivo]","v":{"v":0,"d":"€ 0"}}]
["Totale",{"$f":"SUBTOTAL(109,Transportation[Costo previsto])","v":{"v":0,"d":"€ 0"}},{"$f":"SUBTOTAL(109,Transportation[Costo effettivo])","v":{"v":0,"d":"€ 0"}},{"$f":"SUBTOTAL(109,Transportation[Differenza])","v":{"v":0,"d":"€ 0"}},null,"Svago","Costo previsto","Costo effettivo","Differenza"]
[{"$nulls":5},"Video/DVD",null,null,{"$f":"Entertainment[Costo previsto]-Entertainment[Costo effettivo]","v":{"v":0,"d":"€ 0"}}]
["Assicurazione","Costo previsto","Costo effettivo","Differenza",null,"CD",null,null,{"$f":"Entertainment[Costo previsto]-Entertainment[Costo effettivo]","v":{"v":0,"d":"€ 0"}}]
["Casa",null,null,{"$f":"Insurance[Costo previsto]-Insurance[Costo effettivo]","v":{"v":0,"d":"€ 0"}},null,"Film",null,null,{"$f":"Entertainment[Costo previsto]-Entertainment[Costo effettivo]","v":{"v":0,"d":"€ 0"}}]
["Salute",null,null,{"$f":"Insurance[Costo previsto]-Insurance[Costo effettivo]","v":{"v":0,"d":"€ 0"}},null,"Concerti",null,null,{"$f":"Entertainment[Costo previsto]-Entertainment[Costo effettivo]","v":{"v":0,"d":"€ 0"}}]
["Vita",null,null,{"$f":"Insurance[Costo previsto]-Insurance[Costo effettivo]","v":{"v":0,"d":"€ 0"}},null,"Eventi sportivi",null,null,{"$f":"Entertainment[Costo previsto]-Entertainment[Costo effettivo]","v":{"v":0,"d":"€ 0"}}]
["Altro",null,null,{"$f":"Insurance[Costo previsto]-Insurance[Costo effettivo]","v":{"v":0,"d":"€ 0"}},null,"Teatro",null,null,{"$f":"Entertainment[Costo previsto]-Entertainment[Costo effettivo]","v":{"v":0,"d":"€ 0"}}]
["Totale",{"$f":"SUBTOTAL(109,Insurance[Costo previsto])","v":{"v":0,"d":"€ 0"}},{"$f":"SUBTOTAL(109,Insurance[Costo effettivo])","v":{"v":0,"d":"€ 0"}},{"$f":"SUBTOTAL(109,Insurance[Differenza])","v":{"v":0,"d":"€ 0"}},null,"Altro",null,null,{"$f":"Entertainment[Costo previsto]-Entertainment[Costo effettivo]","v":{"v":0,"d":"€ 0"}}]
[{"$nulls":5},"Totale",{"$f":"SUBTOTAL(109,Entertainment[Costo previsto])","v":{"v":0,"d":"€ 0"}},{"$f":"SUBTOTAL(109,Entertainment[Costo effettivo])","v":{"v":0,"d":"€ 0"}},{"$f":"SUBTOTAL(109,Entertainment[Differenza])","v":{"v":0,"d":"€ 0"}}]
["Cibo","Costo previsto","Costo effettivo","Differenza"]
["Verdura",null,null,{"$f":"Food[Costo previsto]-Food[Costo effettivo]","v":{"v":0,"d":"€ 0"}},null,"Tasse","Costo previsto","Costo effettivo","Differenza"]
["Cene",null,null,{"$f":"Food[Costo previsto]-Food[Costo effettivo]","v":{"v":0,"d":"€ 0"}},null,"Nazionali",null,null,{"$f":"Taxes[Costo previsto]-Taxes[Costo effettivo]","v":{"v":0,"d":"€ 0"}}]
["Altro",null,null,{"$f":"Food[Costo previsto]-Food[Costo effettivo]","v":{"v":0,"d":"€ 0"}},null,"Regionali",null,null,{"$f":"Taxes[Costo previsto]-Taxes[Costo effettivo]","v":{"v":0,"d":"€ 0"}}]
["Totale",{"$f":"SUBTOTAL(109,Food[Costo previsto])","v":{"v":0,"d":"€ 0"}},{"$f":"SUBTOTAL(109,Food[Costo effettivo])","v":{"v":0,"d":"€ 0"}},{"$f":"SUBTOTAL(109,Food[Differenza])","v":{"v":0,"d":"€ 0"}},null,"Locali",null,null,{"$f":"Taxes[Costo previsto]-Taxes[Costo effettivo]","v":{"v":0,"d":"€ 0"}}]
[{"$nulls":5},"Altro",null,null,{"$f":"Taxes[Costo previsto]-Taxes[Costo effettivo]","v":{"v":0,"d":"€ 0"}}]
["Figli","Costo previsto","Costo effettivo","Differenza",null,"Totale",{"$f":"SUBTOTAL(109,Taxes[Costo previsto])","v":{"v":0,"d":"€ 0"}},{"$f":"SUBTOTAL(109,Taxes[Costo effettivo])","v":{"v":0,"d":"€ 0"}},{"$f":"SUBTOTAL(109,Taxes[Differenza])","v":{"v":0,"d":"€ 0"}}]
["Assistenza medica",null,null,{"$f":"Children[Costo previsto]-Children[Costo effettivo]","v":{"v":0,"d":"€ 0"}}]
["Abbigliamento",null,null,{"$f":"Children[Costo previsto]-Children[Costo effettivo]","v":{"v":0,"d":"€ 0"}},null,"Cura della persona","Costo previsto","Costo effettivo","Differenza"]
["Istruzione scolastica",null,null,{"$f":"Children[Costo previsto]-Children[Costo effettivo]","v":{"v":0,"d":"€ 0"}},null,"Assistenza medica",null,null,{"$f":"PersonalCare[Costo previsto]-PersonalCare[Costo effettivo]","v":{"v":0,"d":"€ 0"}}]
["Materiale scolastico",null,null,{"$f":"Children[Costo previsto]-Children[Costo effettivo]","v":{"v":0,"d":"€ 0"}},null,"Parrucchiere",null,null,{"$f":"PersonalCare[Costo previsto]-PersonalCare[Costo effettivo]","v":{"v":0,"d":"€ 0"}}]
["Biglietti",null,null,{"$f":"Children[Costo previsto]-Children[Costo effettivo]","v":{"v":0,"d":"€ 0"}},null,"Abbigliamento",null,null,{"$f":"PersonalCare[Costo previsto]-PersonalCare[Costo effettivo]","v":{"v":0,"d":"€ 0"}}]
["Pranzo",null,null,{"$f":"Children[Costo previsto]-Children[Costo effettivo]","v":{"v":0,"d":"€ 0"}},null,"Lavanderia",null,null,{"$f":"PersonalCare[Costo previsto]-PersonalCare[Costo effettivo]","v":{"v":0,"d":"€ 0"}}]
["Assistenza bambini",null,null,{"$f":"Children[Costo previsto]-Children[Costo effettivo]","v":{"v":0,"d":"€ 0"}},null,"Palestra",null,null,{"$f":"PersonalCare[Costo previsto]-PersonalCare[Costo effettivo]","v":{"v":0,"d":"€ 0"}}]
["Giocattoli/giochi",null,null,{"$f":"Children[Costo previsto]-Children[Costo effettivo]","v":{"v":0,"d":"€ 0"}},null,"Biglietti",null,null,{"$f":"PersonalCare[Costo previsto]-PersonalCare[Costo effettivo]","v":{"v":0,"d":"€ 0"}}]
["Altro",null,null,{"$f":"Children[Costo previsto]-Children[Costo effettivo]","v":{"v":0,"d":"€ 0"}},null,"Altro",null,null,{"$f":"PersonalCare[Costo previsto]-PersonalCare[Costo effettivo]","v":{"v":0,"d":"€ 0"}}]
["Totale",{"$f":"SUBTOTAL(109,Children[Costo previsto])","v":{"v":0,"d":"€ 0"}},{"$f":"SUBTOTAL(109,Children[Costo effettivo])","v":{"v":0,"d":"€ 0"}},{"$f":"SUBTOTAL(109,Children[Differenza])","v":{"v":0,"d":"€ 0"}},null,"Totale",{"$f":"SUBTOTAL(109,PersonalCare[Costo previsto])","v":{"v":0,"d":"€ 0"}},{"$f":"SUBTOTAL(109,PersonalCare[Costo effettivo])","v":{"v":0,"d":"€ 0"}},{"$f":"SUBTOTAL(109,PersonalCare[Differenza])","v":{"v":0,"d":"€ 0"}}]
[]
["Spese legali","Costo previsto","Costo effettivo","Differenza",null,"Animali","Costo previsto","Costo effettivo","Differenza"]
["Avvocato",null,null,{"$f":"Legal[Costo previsto]-Legal[Costo effettivo]","v":{"v":0,"d":"€ 0"}},null,"Cibo",null,null,{"$f":"Pets[Costo previsto]-Pets[Costo effettivo]","v":{"v":0,"d":"€ 0"}}]
["Alimenti",null,null,{"$f":"Legal[Costo previsto]-Legal[Costo effettivo]","v":{"v":0,"d":"€ 0"}},null,"Assistenza medica",null,null,{"$f":"Pets[Costo previsto]-Pets[Costo effettivo]","v":{"v":0,"d":"€ 0"}}]
["Pagamenti",null,null,{"$f":"Legal[Costo previsto]-Legal[Costo effettivo]","v":{"v":0,"d":"€ 0"}},null,"Veterinario",null,null,{"$f":"Pets[Costo previsto]-Pets[Costo effettivo]","v":{"v":0,"d":"€ 0"}}]
["Altro",null,null,{"$f":"Legal[Costo previsto]-Legal[Costo effettivo]","v":{"v":0,"d":"€ 0"}},null,"Giocattoli",null,null,{"$f":"Pets[Costo previsto]-Pets[Costo effettivo]","v":{"v":0,"d":"€ 0"}}]
["Totale",{"$f":"SUBTOTAL(109,Legal[Costo previsto])","v":{"v":0,"d":"€ 0"}},{"$f":"SUBTOTAL(109,Legal[Costo effettivo])","v":{"v":0,"d":"€ 0"}},{"$f":"SUBTOTAL(109,Legal[Differenza])","v":{"v":0,"d":"€ 0"}},null,"Altro",null,null,{"$f":"Pets[Costo previsto]-Pets[Costo effettivo]","v":{"v":0,"d":"€ 0"}}]
[{"$nulls":5},"Totale",{"$f":"SUBTOTAL(109,Pets[Costo previsto])","v":{"v":0,"d":"€ 0"}},{"$f":"SUBTOTAL(109,Pets[Costo effettivo])","v":{"v":0,"d":"€ 0"}},{"$f":"SUBTOTAL(109,Pets[Differenza])","v":{"v":0,"d":"€ 0"}}]
["Risparmi/investimenti","Costo previsto","Costo effettivo","Differenza"]
["Fondo pensione",null,null,{"$f":"Savings[Costo previsto]-Savings[Costo effettivo]","v":{"v":0,"d":"€ 0"}},null,"Regali e donazioni","Costo previsto","Costo effettivo","Differenza"]
["Conto investimento",null,null,{"$f":"Savings[Costo previsto]-Savings[Costo effettivo]","v":{"v":0,"d":"€ 0"}},null,"Beneficenza 1",null,null,{"$f":"Gifts[Costo previsto]-Gifts[Costo effettivo]","v":{"v":0,"d":"€ 0"}}]
["Università",null,null,{"$f":"Savings[Costo previsto]-Savings[Costo effettivo]","v":{"v":0,"d":"€ 0"}},null,"Beneficenza 2",null,null,{"$f":"Gifts[Costo previsto]-Gifts[Costo effettivo]","v":{"v":0,"d":"€ 0"}}]
["Altro",null,null,{"$f":"Savings[Costo previsto]-Savings[Costo effettivo]","v":{"v":0,"d":"€ 0"}},null,"Beneficenza 3",null,null,{"$f":"Gifts[Costo previsto]-Gifts[Costo effettivo]","v":{"v":0,"d":"€ 0"}}]
["Totale",{"$f":"SUBTOTAL(109,Savings[Costo previsto])","v":{"v":0,"d":"€ 0"}},{"$f":"SUBTOTAL(109,Savings[Costo effettivo])","v":{"v":0,"d":"€ 0"}},{"$f":"SUBTOTAL(109,Savings[Differenza])","v":{"v":0,"d":"€ 0"}},null,"Totale",{"$f":"SUBTOTAL(109,Gifts[Costo previsto])","v":{"v":0,"d":"€ 0"}},{"$f":"SUBTOTAL(109,Gifts[Costo effettivo])","v":{"v":0,"d":"€ 0"}},{"$f":"SUBTOTAL(109,Gifts[Differenza])","v":{"v":0,"d":"€ 0"}}]